[Event "Grand Prix Romania 1st Stage 2024"]
[Site "Bucuresti"]
[Date "2024.03.24"]
[Round "7.34"]
[White "Toma, Iustin"]
[Black "Stepanencu, Nicodim-Cosmin"]
[Result "1/2-1/2"]
[ECO "B11"]
[WhiteElo "1891"]
[BlackElo "2278"]
[Annotator "RC"]
[PlyCount "130"]
[EventDate "2024.03.20"]
[EventType "swiss"]
[EventCountry "ROU"]
[SourceTitle "playchess.com"]
[Source "ChessBase"]
[SourceQuality "1"]
[TimeControl "900+5"]

1. e4 {[%emt 0:00:02]} c6 {[%emt 0:00:19]} 2. Nc3 {[%emt 0:00:02]} d5 {[%emt 0:00:02]} 3. Nf3 {[%emt 0:00:03]} dxe4 {[%emt 0:00:04]} 4. Nxe4 {[%emt 0:00:01]} Nf6 {[%emt 0:00:02]} 5. Qe2 {[%emt 0:00:02]} Na6 {[%emt 0:00:06]} 6. d4 {[%emt 0:00:14]} Nxe4 {[%emt 0:00:25]} 7. Qxe4 {[%emt 0:00:03]} Qd5 {[%emt 0:00:01]} 8. Qxd5 {[%emt 0:01:33]} cxd5 {[%emt 0:00:02]} 9. Ne5 {[%emt 0:01:22]} Nb8 {[%emt 0:00:06]} 10. Bb5+ {[%emt 0:00:11]} Nd7 {[%emt 0:00:01]} 11. Bf4 {[%emt 0:01:14]} f6 {[%emt 0:00:13]} 12. Nxd7 {[%emt 0:00:34]} Bxd7 {[%emt 0:00:01]} 13. Bd3 {[%emt 0:00:02]} Kf7 {[%emt 0:00:36]} 14. a4 {[%emt 0:00:22]} g6 {[%emt 0:01:04]} 15. Kd2 {[%emt 0:00:42]} Bg7 {[%emt 0:00:02]} 16. Rhe1 {[%emt 0:00:39]} Rhe8 {[%emt 0:00:02]} 17. c3 {[%emt 0:00:17]} e5 {[%emt 0:00:18]} 18. Be3 {[%emt 0:00:08]} e4 {[%emt 0:03:15]} 19. Bc2 {[%emt 0:02:16]} a5 {[%emt 0:00:28]} 20. f3 {[%emt 0:01:59]} exf3 {[%emt 0:01:01]} 21. gxf3 {[%emt 0:00:02]} Ra6 {[%emt 0:00:01]} 22. Bf4 {[%emt 0:00:15]} Rc8 {[%emt 0:00:39]} 23. Re2 {[%emt 0:02:26]} Bf8 {[%emt 0:00:20]} 24. Bb3 {[%emt 0:00:17]} Be6 {[%emt 0:03:14]} 25. Rae1 {[%emt 0:00:07]} Rd8 {[%emt 0:00:01]} 26. Bc2 {[%emt 0:00:27]} Rc6 {[%emt 0:00:10]} 27. Bd3 {[%emt 0:00:04]} Bd6 {[%emt 0:00:16]} 28. Bg3 {[%emt 0:00:22]} Bxg3 {[%emt 0:01:32]} 29. hxg3 {[%emt 0:00:01]} Rdd6 {[%emt 0:00:05]} 30. Bb5 {[%emt 0:00:07]} Rc7 {[%emt 0:00:00]} 31. g4 {[%emt 0:00:15]} Re7 {[%emt 0:01:19]} 32. b3 {[%emt 0:00:45]} h6 {[%emt 0:01:03]} 33. Re3 {[%emt 0:00:17]} Rd8 {[%emt 0:00:21]} 34. Rh1 {[%emt 0:00:12]} Rh8 {[%emt 0:00:10]} 35. Bd3 {[%emt 0:00:10]} f5 {[%emt 0:00:21]} 36. gxf5 {[%emt 0:00:05]} Bxf5 {[%emt 0:00:01]} 37. Rxe7+ {[%emt 0:00:11]} Kxe7 {[%emt 0:00:01]} 38. Bxf5 gxf5 {[%emt 0:00:00]} 39. Ke3 {[%emt 0:00:05]} Rc8 {[%emt 0:00:25]} 40. Kd3 {[%emt 0:00:02]} Rc6 {[%emt 0:00:01]} 41. c4 {[%emt 0:00:01]} Rb6 {[%emt 0:00:09]} 42. Kc3 {[%emt 0:00:05]} dxc4 {[%emt 0:00:03]} 43. bxc4 {[%emt 0:00:16]} Rg6 {[%emt 0:00:11]} 44. Rh3 {[%emt 0:00:08]} b6 {[%emt 0:00:07]} 45. c5 {[%emt 0:00:06]} bxc5 {[%emt 0:00:02]} 46. dxc5 {[%emt 0:00:01]} Kd7 {[%emt 0:00:07]} 47. Kc4 {[%emt 0:00:01]} Kc6 {[%emt 0:00:07]} 48. Rh5 {[%emt 0:00:03]} Rf6 {[%emt 0:00:01]} 49. f4 {[%emt 0:00:08]} Re6 {[%emt 0:00:01]} 50. Rxf5 {[%emt 0:00:05]} Re4+ {[%emt 0:00:01]} 51. Kb3 {[%emt 0:00:06]} Re3+ {[%emt 0:00:15]} 52. Kb2 {[%emt 0:00:09]} Rh3 {[%emt 0:00:06]} 53. Re5 {[%emt 0:00:12]} h5 {[%emt 0:00:01]} 54. Kc2 {[%emt 0:00:06]} h4 {[%emt 0:00:05]} 55. Rh5 {[%emt 0:00:06]} Rh1 {[%emt 0:00:04]} 56. Kd2 {[%emt 0:00:04]} h3 {[%emt 0:00:02]} 57. Ke2 {[%emt 0:00:08]} Ra1 {[%emt 0:00:14]} 58. Rxh3 {[%emt 0:00:05]} Rxa4 {[%emt 0:00:01]} 59. f5 {[%emt 0:00:05]} Rf4 {[%emt 0:00:07]} 60. Rf3 {[%emt 0:00:04]} Rxf3 {[%emt 0:00:04]} 61. Kxf3 {[%emt 0:00:01]} Kxc5 {[%emt 0:00:01]} 62. Ke3 {[%emt 0:00:12]} a4 {[%emt 0:00:03]} 63. f6 {[%emt 0:00:04]} Kd6 {[%emt 0:00:01]} 64. Kd3 {[%emt 0:00:03]} Ke6 {[%emt 0:00:01]} 65. Kc3 {[%emt 0:00:01]} Ke5 {[%emt 0:00:28]} 1/2-1/2

[Event "Grand Prix Romania 1st Stage 2024"]
[Site "Bucuresti"]
[Date "2024.03.24"]
[Round "7.35"]
[White "Lehaci, Miruna-Daria"]
[Black "Filip, Lucian-Ioan"]
[Result "0-1"]
[ECO "A45"]
[WhiteElo "2247"]
[BlackElo "2359"]
[Annotator "RC"]
[PlyCount "80"]
[EventDate "2024.03.20"]
[EventType "swiss"]
[EventCountry "ROU"]
[SourceTitle "playchess.com"]
[Source "ChessBase"]
[SourceQuality "1"]
[TimeControl "900+5"]

1. d4 {[%emt 0:00:02]} Nf6 {[%emt 0:00:05]} 2. Bf4 {[%emt 0:00:03]} g6 {[%emt 0:00:03]} 3. Nc3 {[%emt 0:00:04]} d5 {[%emt 0:00:02]} 4. e3 {[%emt 0:00:02]} Bg7 {[%emt 0:00:12]} 5. h4 {[%emt 0:00:02]} h5 {[%emt 0:00:05]} 6. Nf3 {[%emt 0:00:07]} O-O {[%emt 0:00:03]} 7. Ne5 {[%emt 0:00:06]} c5 {[%emt 0:00:03]} 8. Qd2 {[%emt 0:00:02]} cxd4 {[%emt 0:00:27]} 9. exd4 {[%emt 0:00:02]} Nc6 {[%emt 0:00:01]} 10. O-O-O {[%emt 0:00:06]} Bf5 {[%emt 0:00:01]} 11. Bb5 {[%emt 0:01:35]} Nb4 {[%emt 0:02:24]} 12. Ba4 {[%emt 0:00:27]} Qa5 {[%emt 0:00:42]} 13. Bb3 {[%emt 0:01:34]} Rac8 {[%emt 0:00:36]} 14. a3 {[%emt 0:03:34]} Nc6 {[%emt 0:05:49]} 15. f3 {[%emt 0:00:09]} Rfd8 {[%emt 0:01:52]} 16. Kb1 {[%emt 0:01:34]} b5 {[%emt 0:01:28]} 17. g4 {[%emt 0:03:05]} hxg4 {[%emt 0:00:07]} 18. h5 {[%emt 0:00:01]} Nxe5 {[%emt 0:00:39]} 19. dxe5 {[%emt 0:00:51]} Nxh5 {[%emt 0:01:03]} 20. Bh6 {[%emt 0:00:10]} Bxh6 {[%emt 0:00:54]} 21. Qxh6 {[%emt 0:00:03]} Rxc3 {[%emt 0:00:01]} 22. fxg4 {[%emt 0:01:13]} Bxg4 {[%emt 0:00:05]} 23. Bxd5 {[%emt 0:00:07]} e6 {[%emt 0:00:07]} 24. Bxe6 {[%emt 0:01:56]} Rxd1+ {[%emt 0:00:04]} 25. Rxd1 {[%emt 0:00:01]} Bxe6 {[%emt 0:00:06]} 26. bxc3 {[%emt 0:00:06]} Qc7 {[%emt 0:00:06]} 27. Qg5 {[%emt 0:00:07]} Kg7 {[%emt 0:00:03]} 28. Rd4 {[%emt 0:00:07]} Qxc3 {[%emt 0:00:02]} 29. Rb4 {[%emt 0:00:06]} Bf5 {[%emt 0:00:02]} 30. Qg2 {[%emt 0:00:05]} Qxe5 {[%emt 0:00:03]} 31. Qf1 {[%emt 0:00:06]} a6 {[%emt 0:00:02]} 32. Qd1 {[%emt 0:00:04]} Nf6 {[%emt 0:00:02]} 33. Rb2 {[%emt 0:00:13]} Nd5 {[%emt 0:00:06]} 34. Kc1 {[%emt 0:00:00]} Ne3 {[%emt 0:00:02]} 35. Qe1 {[%emt 0:00:03]} Qc5 {[%emt 0:00:06]} 36. Kb1 {[%emt 0:00:06]} Nxc2 {[%emt 0:00:03]} 37. Qg3 {[%emt 0:00:02]} Nxa3+ {[%emt 0:00:03]} 38. Ka2 {[%emt 0:00:03]} Nc2 {[%emt 0:00:05]} 39. Kb1 {[%emt 0:00:08]} Qd4 {[%emt 0:00:09]} 40. Rxc2 {[%emt 0:00:07]} Qd1+ {[%emt 0:00:02]} 0-1

[Event "Grand Prix Romania 1st Stage 2024"]
[Site "Bucuresti"]
[Date "2024.03.24"]
[Round "7.36"]
[White "Toma, Radu-Cristian"]
[Black "Capata, Ion"]
[Result "1-0"]
[ECO "D30"]
[WhiteElo "2386"]
[BlackElo "2038"]
[Annotator "RC"]
[PlyCount "122"]
[EventDate "2024.03.20"]
[EventType "swiss"]
[EventCountry "ROU"]
[SourceTitle "playchess.com"]
[Source "ChessBase"]
[SourceQuality "1"]
[TimeControl "900+5"]

1. d4 {[%emt 0:00:02]} d5 {[%emt 0:00:01]} 2. c4 {[%emt 0:00:03]} e6 {[%emt 0:00:08]} 3. Nf3 {[%emt 0:00:04]} Nf6 {[%emt 0:00:02]} 4. e3 {[%emt 0:00:10]} c5 {[%emt 0:00:08]} 5. Be2 {[%emt 0:00:25]} cxd4 {[%emt 0:00:14]} 6. Nxd4 {[%emt 0:00:12]} Bb4+ {[%emt 0:00:09]} 7. Bd2 {[%emt 0:00:05]} Bxd2+ {[%emt 0:00:13]} 8. Nxd2 {[%emt 0:00:27]} O-O {[%emt 0:00:22]} 9. O-O {[%emt 0:00:14]} b6 {[%emt 0:00:25]} 10. b4 {[%emt 0:01:01]} Bb7 {[%emt 0:00:29]} 11. Qb3 {[%emt 0:01:32]} dxc4 {[%emt 0:01:09]} 12. Nxc4 {[%emt 0:00:26]} Bd5 {[%emt 0:02:12]} 13. Bf3 {[%emt 0:00:43]} Nbd7 {[%emt 0:01:04]} 14. Nc6 {[%emt 0:00:43]} Bxc6 {[%emt 0:01:55]} 15. Bxc6 {[%emt 0:00:02]} Rc8 {[%emt 0:00:02]} 16. Bb7 {[%emt 0:02:25]} Rb8 {[%emt 0:00:24]} 17. Bf3 {[%emt 0:00:17]} Qc7 {[%emt 0:00:25]} 18. Rac1 {[%emt 0:00:24]} Ne5 {[%emt 0:00:41]} 19. Be2 {[%emt 0:00:51]} Nxc4 {[%emt 0:00:17]} 20. Rxc4 {[%emt 0:00:06]} Qe5 {[%emt 0:01:15]} 21. Rfc1 {[%emt 0:00:22]} Rfd8 {[%emt 0:00:37]} 22. Qc2 {[%emt 0:00:02]} g6 {[%emt 0:00:27]} 23. Bf3 {[%emt 0:01:28]} Nd5 {[%emt 0:00:39]} 24. a3 {[%emt 0:00:11]} a5 {[%emt 0:00:10]} 25. Re4 {[%emt 0:00:54]} Qf6 {[%emt 0:00:16]} 26. b5 {[%emt 0:00:10]} Qe7 {[%emt 0:00:09]} 27. Qb2 {[%emt 0:00:10]} Rdc8 {[%emt 0:00:14]} 28. Rec4 {[%emt 0:00:05]} Rxc4 {[%emt 0:00:04]} 29. Rxc4 {[%emt 0:00:01]} Qf6 {[%emt 0:00:11]} 30. Qc1 {[%emt 0:00:17]} Rd8 {[%emt 0:00:25]} 31. h3 {[%emt 0:00:18]} Qe7 {[%emt 0:00:13]} 32. Rc6 {[%emt 0:00:08]} Rb8 {[%emt 0:00:28]} 33. e4 {[%emt 0:00:38]} Nf6 {[%emt 0:00:14]} 34. Qf4 {[%emt 0:00:09]} Nd7 {[%emt 0:00:13]} 35. Qc7 {[%emt 0:00:38]} Qd8 {[%emt 0:00:28]} 36. Qa7 {[%emt 0:00:40]} Ra8 {[%emt 0:00:25]} 37. Qc7 {[%emt 0:00:02]} Qxc7 {[%emt 0:00:17]} 38. Rxc7 {[%emt 0:00:01]} Ne5 {[%emt 0:00:09]} 39. Be2 {[%emt 0:00:05]} Rd8 {[%emt 0:00:06]} 40. Rb7 {[%emt 0:00:38]} Rd2 {[%emt 0:00:09]} 41. Kf1 {[%emt 0:00:07]} Ra2 {[%emt 0:00:03]} 42. f4 {[%emt 0:00:03]} Rxe2 {[%emt 0:00:54]} 43. Kxe2 {[%emt 0:00:02]} Nc4 {[%emt 0:00:01]} 44. Kd3 {[%emt 0:00:12]} Nxa3 {[%emt 0:00:06]} 45. Rxb6 {[%emt 0:00:02]} Kf8 {[%emt 0:00:05]} 46. Rb7 {[%emt 0:00:16]} Ke8 {[%emt 0:00:05]} 47. g4 {[%emt 0:00:07]} h5 {[%emt 0:00:01]} 48. gxh5 {[%emt 0:00:27]} gxh5 {[%emt 0:00:01]} 49. Kc3 {[%emt 0:00:07]} Nb1+ {[%emt 0:00:07]} 50. Kc2 {[%emt 0:00:05]} Na3+ {[%emt 0:00:01]} 51. Kb3 {[%emt 0:00:04]} Nb1 {[%emt 0:00:01]} 52. e5 {[%emt 0:00:09]} Nd2+ {[%emt 0:00:06]} 53. Kc3 {[%emt 0:00:05]} Ne4+ {[%emt 0:00:01]} 54. Kd4 {[%emt 0:00:02]} Nd2 {[%emt 0:00:15]} 55. b6 {[%emt 0:00:07]} a4 {[%emt 0:00:01]} 56. Ra7 {[%emt 0:00:07]} Kd8 {[%emt 0:00:15]} 57. Rxa4 {[%emt 0:00:12]} Kc8 {[%emt 0:00:05]} 58. Ra7 {[%emt 0:00:12]} Nf3+ {[%emt 0:00:03]} 59. Ke3 {[%emt 0:00:07]} Nh4 {[%emt 0:00:07]} 60. Rxf7 {[%emt 0:00:05]} Nf5+ {[%emt 0:00:02]} 61. Rxf5 {[%emt 0:00:05]} exf5 1-0

[Event "Grand Prix Romania 1st Stage 2024"]
[Site "Bucuresti"]
[Date "2024.03.24"]
[Round "7.37"]
[White "Arandjelovic, Aleksandar Z"]
[Black "Cosma, Ioan"]
[Result "0-1"]
[ECO "E30"]
[WhiteElo "1887"]
[BlackElo "2316"]
[Annotator "RC"]
[PlyCount "100"]
[EventDate "2024.03.20"]
[EventType "swiss"]
[EventCountry "ROU"]
[SourceTitle "playchess.com"]
[Source "ChessBase"]
[SourceQuality "1"]
[TimeControl "900+5"]

1. d4 {[%emt 0:00:05]} Nf6 {[%emt 0:00:01]} 2. c4 {[%emt 0:00:00]} e6 {[%emt 0:00:00]} 3. Nc3 {[%emt 0:00:01]} Bb4 {[%emt 0:00:02]} 4. Bg5 {[%emt 0:00:02]} c5 {[%emt 0:00:11]} 5. d5 {[%emt 0:00:01]} exd5 {[%emt 0:00:07]} 6. cxd5 {[%emt 0:00:03]} d6 {[%emt 0:00:01]} 7. e3 {[%emt 0:00:02]} Nbd7 {[%emt 0:00:02]} 8. Bd3 {[%emt 0:00:01]} Qa5 {[%emt 0:00:03]} 9. Nge2 {[%emt 0:00:17]} Nxd5 {[%emt 0:00:04]} 10. O-O {[%emt 0:00:47]} Bxc3 {[%emt 0:00:04]} 11. bxc3 {[%emt 0:00:07]} c4 {[%emt 0:00:34]} 12. Bc2 {[%emt 0:00:42]} O-O {[%emt 0:00:03]} 13. Nd4 {[%emt 0:02:54]} Nxc3 {[%emt 0:00:46]} 14. Qg4 {[%emt 0:01:10]} Ne5 {[%emt 0:02:07]} 15. Qg3 {[%emt 0:01:24]} Nd3 {[%emt 0:01:24]} 16. Bf6 {[%emt 0:01:26]} g6 {[%emt 0:00:31]} 17. Qh4 {[%emt 0:00:58]} Qh5 {[%emt 0:00:34]} 18. Qxh5 {[%emt 0:00:58]} gxh5 {[%emt 0:00:01]} 19. Be7 {[%emt 0:00:52]} Re8 {[%emt 0:00:18]} 20. Bxd6 {[%emt 0:00:01]} Bd7 {[%emt 0:00:18]} 21. a4 {[%emt 0:00:14]} Ne4 {[%emt 0:00:27]} 22. Ba3 {[%emt 0:00:45]} b6 {[%emt 0:01:01]} 23. f3 {[%emt 0:00:07]} Nec5 {[%emt 0:00:35]} 24. Bxd3 {[%emt 0:00:47]} Nxd3 {[%emt 0:00:22]} 25. e4 {[%emt 0:00:11]} Bxa4 {[%emt 0:00:58]} 26. Nf5 {[%emt 0:00:04]} Bd7 {[%emt 0:00:42]} 27. Nd6 {[%emt 0:00:05]} b5 {[%emt 0:00:33]} 28. f4 {[%emt 0:00:33]} b4 {[%emt 0:00:30]} 29. Nxe8 {[%emt 0:00:16]} Bxe8 {[%emt 0:00:20]} 30. Bc1 {[%emt 0:00:21]} Nxc1 {[%emt 0:00:52]} 31. Rfxc1 {[%emt 0:00:06]} c3 {[%emt 0:00:01]} 32. Ra5 {[%emt 0:00:03]} Bc6 {[%emt 0:01:03]} 33. Re1 {[%emt 0:01:03]} Rc8 {[%emt 0:00:42]} 34. Rc5 {[%emt 0:00:10]} Bd7 {[%emt 0:00:11]} 35. Rxc8+ {[%emt 0:00:41]} Bxc8 {[%emt 0:02:32]} 36. Kf2 b3 {[%emt 0:00:00]} 37. Ke3 {[%emt 0:00:08]} a5 {[%emt 0:00:00]} 38. Kd4 {[%emt 0:00:03]} c2 {[%emt 0:00:00]} 39. Kc3 {[%emt 0:00:01]} a4 {[%emt 0:00:00]} 40. Kb2 {[%emt 0:00:17]} Bb7 {[%emt 0:00:00]} 41. Ra1 {[%emt 0:00:14]} Bc6 {[%emt 0:00:00]} 42. g3 {[%emt 0:00:05]} Kf8 {[%emt 0:00:00]} 43. h3 {[%emt 0:00:04]} Ke7 {[%emt 0:00:00]} 44. Re1 {[%emt 0:00:05]} Kd6 {[%emt 0:00:00]} 45. g4 {[%emt 0:00:03]} Kc5 {[%emt 0:00:00]} 46. Kc3 {[%emt 0:00:25]} hxg4 {[%emt 0:00:00]} 47. hxg4 {[%emt 0:00:00]} Bxe4 {[%emt 0:00:00]} 48. f5 {[%emt 0:00:08]} Bf3 {[%emt 0:00:00]} 49. g5 {[%emt 0:00:03]} Bd1 {[%emt 0:00:00]} 50. Kb2 {[%emt 0:00:02]} a3+ {[%emt 0:00:00]} 0-1

[Event "Grand Prix Romania 1st Stage 2024"]
[Site "Bucuresti"]
[Date "2024.03.24"]
[Round "7.38"]
[White "Popescu, Stefan-Claudiu"]
[Black "Dobre, Claudiu-Cristian"]
[Result "0-1"]
[ECO "C20"]
[WhiteElo "1980"]
[BlackElo "2259"]
[Annotator "RC"]
[PlyCount "56"]
[EventDate "2024.03.20"]
[EventType "swiss"]
[EventCountry "ROU"]
[SourceTitle "playchess.com"]
[Source "ChessBase"]
[SourceQuality "1"]
[TimeControl "900+5"]

1. e4 {[%emt 0:00:03]} Nc6 {[%emt 0:00:01]} 2. g3 {[%emt 0:00:13]} e5 {[%emt 0:00:03]} 3. Bg2 {[%emt 0:00:10]} Bc5 {[%emt 0:00:03]} 4. Nf3 {[%emt 0:00:16]} d6 {[%emt 0:00:09]} 5. c3 {[%emt 0:00:50]} Nf6 {[%emt 0:03:13]} 6. Qc2 {[%emt 0:00:06]} a5 {[%emt 0:00:49]} 7. O-O {[%emt 0:00:21]} O-O {[%emt 0:00:18]} 8. d3 {[%emt 0:01:11]} Nh5 {[%emt 0:01:25]} 9. Bg5 {[%emt 0:00:54]} f6 {[%emt 0:00:14]} 10. Be3 {[%emt 0:00:02]} a4 {[%emt 0:03:17]} 11. Bxc5 {[%emt 0:02:36]} dxc5 {[%emt 0:00:02]} 12. Na3 {[%emt 0:00:08]} Be6 {[%emt 0:00:06]} 13. Rfd1 {[%emt 0:00:30]} Qd7 {[%emt 0:02:12]} 14. Nc4 {[%emt 0:02:06]} Qf7 {[%emt 0:01:02]} 15. b3 {[%emt 0:01:07]} b5 {[%emt 0:00:23]} 16. Ncd2 {[%emt 0:00:01]} g6 {[%emt 0:02:42]} 17. bxa4 {[%emt 0:02:22]} bxa4 {[%emt 0:00:04]} 18. Nf1 {[%emt 0:00:47]} Rfd8 {[%emt 0:00:12]} 19. Ne3 {[%emt 0:00:27]} Ng7 {[%emt 0:00:07]} 20. Nd5 {[%emt 0:01:01]} Na7 {[%emt 0:00:16]} 21. Qxa4 {[%emt 0:00:14]} c6 {[%emt 0:00:03]} 22. Nb6 {[%emt 0:00:07]} Rab8 {[%emt 0:00:02]} 23. Nc4 {[%emt 0:00:12]} Nb5 {[%emt 0:00:01]} 24. Qc2 {[%emt 0:00:15]} Bxc4 {[%emt 0:00:12]} 25. dxc4 {[%emt 0:00:12]} Qxc4 {[%emt 0:00:07]} 26. Rxd8+ {[%emt 0:00:43]} Rxd8 {[%emt 0:00:01]} 27. Rd1 {[%emt 0:00:01]} Nd4 {[%emt 0:00:08]} 28. Qb2 {[%emt 0:00:15]} Ne2+ {[%emt 0:00:01]} 0-1

[Event "Grand Prix Romania 1st Stage 2024"]
[Site "Bucuresti"]
[Date "2024.03.24"]
[Round "7.39"]
[White "Lauda, Alexandr"]
[Black "Barbu, Simon-Alexandru"]
[Result "1-0"]
[ECO "B11"]
[WhiteElo "2198"]
[BlackElo "1998"]
[Annotator "RC"]
[PlyCount "43"]
[EventDate "2024.03.20"]
[EventType "swiss"]
[EventCountry "ROU"]
[SourceTitle "playchess.com"]
[Source "ChessBase"]
[SourceQuality "1"]
[TimeControl "900+5"]

1. e4 {[%emt 0:00:02]} c6 {[%emt 0:00:00]} 2. Nc3 {[%emt 0:00:08]} d5 {[%emt 0:00:01]} 3. Nf3 {[%emt 0:00:01]} dxe4 {[%emt 0:00:02]} 4. Nxe4 {[%emt 0:00:01]} Nf6 {[%emt 0:00:01]} 5. Ng3 {[%emt 0:00:03]} h5 {[%emt 0:00:08]} 6. h4 {[%emt 0:00:01]} Bg4 {[%emt 0:00:17]} 7. Be2 {[%emt 0:00:07]} e6 {[%emt 0:00:45]} 8. Ne5 {[%emt 0:00:21]} Bxe2 {[%emt 0:01:00]} 9. Qxe2 {[%emt 0:00:03]} Qd5 {[%emt 0:00:18]} 10. c4 {[%emt 0:01:38]} Qxg2 {[%emt 0:00:23]} 11. Nf3 {[%emt 0:00:15]} Ng4 {[%emt 0:01:27]} 12. Rg1 {[%emt 0:02:06]} Qh3 {[%emt 0:00:01]} 13. d4 {[%emt 0:01:20]} Nh2 {[%emt 0:03:42]} 14. Nxh2 {[%emt 0:00:35]} Qxh2 {[%emt 0:00:01]} 15. Qf1 {[%emt 0:00:03]} Qxh4 {[%emt 0:00:59]} 16. Bd2 {[%emt 0:00:22]} Qxd4 {[%emt 0:00:56]} 17. O-O-O {[%emt 0:00:02]} h4 {[%emt 0:00:01]} 18. Bg5 {[%emt 0:00:41]} Qb6 {[%emt 0:00:29]} 19. Qd3 {[%emt 0:00:07]} Be7 {[%emt 0:01:31]} 20. Bxe7 Kxe7 {[%emt 0:00:01]} 21. Qd6+ {[%emt 0:00:02]} Ke8 {[%emt 0:00:21]} 22. Nf5 {[%emt 0:00:02]} 1-0

[Event "Grand Prix Romania 1st Stage 2024"]
[Site "Bucuresti"]
[Date "2024.03.24"]
[Round "8.1"]
[White "Sargsyan, Shant"]
[Black "Kozak, Adam"]
[Result "1/2-1/2"]
[ECO "B52"]
[WhiteElo "2637"]
[BlackElo "2607"]
[Annotator "TA"]
[PlyCount "29"]
[EventDate "2024.03.20"]
[EventType "swiss"]
[EventCountry "ROU"]
[SourceTitle "playchess.com"]
[Source "ChessBase"]
[SourceQuality "1"]
[TimeControl "900+5"]

{[%evp 9,29,9,31,26,23,0,0,0,0,0,0,1,0,-24,-19,-15,0,0,0,0,0,-3]} 1. e4 {[%emt 0:00:02]} c5 {[%emt 0:00:13]} 2. Nf3 {[%emt 0:00:05]} d6 {[%emt 0:00:02]} 3. Bb5+ {[%emt 0:00:02]} Bd7 {[%emt 0:00:07]} 4. c4 {[%emt 0:00:04]} Nf6 {[%emt 0:00:05]} 5. Nc3 {[%emt 0:00:03]} Nc6 {[%emt 0:00:03]} 6. O-O {[%emt 0:00:21]} g6 {[%emt 0:01:09]} 7. d4 {[%emt 0:00:36]} cxd4 {[%emt 0:00:04]} 8. Nxd4 {[%emt 0:00:02]} Bg7 {[%emt 0:00:07][%cal Of6e4]} 9. Bxc6 {[%emt 0:01:02]} bxc6 {[%emt 0:00:35]} 10. c5 {[%emt 0:00:03]} O-O {[%emt 0:00:53]} 11. cxd6 {[%emt 0:01:38]} exd6 {[%emt 0:00:02]} 12. Bf4 {[%emt 0:00:12] Die Stellung ist ausgeglichen.} d5 {[%emt 0:01:37]} 13. exd5 $1 {[%emt 0:00:21]} Nxd5 {[%emt 0:00:05]} 14. Nxd5 {[%emt 0:00:02]} cxd5 {[%emt 0:00:01]} 15. Qd2 {[%emt 0:00:22] Hier war wenig los.   Gewichteter Fehlerwert: Weiß=0.06 (makellos) /Schwarz=0.06 (makellos) .  OK:         	Weiß=2     	Schwarz=3     Stark:        	Weiß=1     	---} 1/2-1/2